[Event "71st MNE-ch 2019"]
[Site "Podgorica"]
[Date "2019.05.26"]
[Round "9.13"]
[White "Karisik, Nenad"]
[Black "Sabotic, Denis"]
[Result "1-0"]
[ECO "B30"]
[WhiteElo "2128"]
[BlackElo "1682"]
[Annotator "NA"]
[PlyCount "69"]
[EventDate "2019.05.18"]
[EventType "swiss"]
[EventCountry "MNE"]
[SourceTitle "playchess.com"]
[Source "ChessBase"]
[SourceQuality "1"]
[TimeControl "40/5400+30:1800+30"]

1. e4 {[%emt 0:00:34]} c5 {[%emt 0:00:00]} 2. Nf3 {[%emt 0:00:05]} Nc6 {[%emt 0:00:00]} 3. Bb5 {[%emt 0:00:06]} e6 {[%emt 0:00:12]} 4. O-O {[%emt 0:02:12]} a6 {[%emt 0:01:11]} 5. Bxc6 {[%emt 0:00:47]} bxc6 {[%emt 0:00:08]} 6. e5 {[%emt 0:00:57]} g6 {[%emt 0:03:52]} 7. Nc3 {[%emt 0:03:01]} Nh6 {[%emt 0:02:36]} 8. Ne4 {[%emt 0:00:47]} Be7 {[%emt 0:00:07]} 9. d3 {[%emt 0:00:25]} Nf5 {[%emt 0:00:14]} 10. b3 {[%emt 0:01:28]} Bb7 {[%emt 0:02:18]} 11. a4 {[%emt 0:01:55]} Qc7 {[%emt 0:05:44]} 12. Ba3 {[%emt 0:00:42]} Nd4 {[%emt 0:01:07]} 13. Nxd4 {[%emt 0:02:59]} cxd4 {[%emt 0:00:14]} 14. Nd6+ {[%emt 0:01:44]} Bxd6 {[%emt 0:05:30]} 15. Bxd6 {[%emt 0:01:00]} Qd8 {[%emt 0:03:33]} 16. Qg4 {[%emt 0:03:21]} f5 {[%emt 0:01:13]} 17. Qxd4 {[%emt 0:00:37]} Rc8 {[%emt 0:01:07]} 18. b4 {[%emt 0:04:06]} Qg5 {[%emt 0:03:23]} 19. Qa7 {[%emt 0:02:33]} Ba8 {[%emt 0:00:16]} 20. Qxa6 {[%emt 0:14:22]} Kf7 {[%emt 0:00:55]} 21. Qa7 {[%emt 0:08:19]} Rhd8 {[%emt 0:00:19]} 22. f4 {[%emt 0:02:32]} Qh4 {[%emt 0:00:27]} 23. Qe3 {[%emt 0:00:23]} Rg8 {[%emt 0:00:19]} 24. Rf3 {[%emt 0:00:20]} g5 {[%emt 0:01:03]} 25. Rh3 {[%emt 0:04:13]} gxf4 {[%emt 0:00:59]} 26. Rxh4 {[%emt 0:00:55]} fxe3 {[%emt 0:00:01]} 27. Bc5 {[%emt 0:00:59]} Rg7 {[%emt 0:02:54]} 28. Re1 {[%emt 0:01:47]} Rcg8 {[%emt 0:00:18]} 29. g3 {[%emt 0:00:16]} d6 {[%emt 0:01:16]} 30. Bxd6 {[%emt 0:01:05]} c5 {[%emt 0:02:17]} 31. Bxc5 {[%emt 0:00:52]} Rxg3+ {[%emt 0:00:49]} 32. hxg3 {[%emt 0:01:12]} Rxg3+ 33. Kf1 Rf3+ {[%emt 0:01:33]} 34. Ke2 {[%emt 0:00:44]} f4 {[%emt 0:00:02]} 35. Rf1 {[%emt 0:00:37]} 1-0

[Event "71st MNE-ch 2019"]
[Site "Podgorica"]
[Date "2019.05.26"]
[Round "9.14"]
[White "Popovic, Mateja"]
[Black "Stankovic, Zarko"]
[Result "1-0"]
[ECO "D10"]
[WhiteElo "1436"]
[BlackElo "2218"]
[Annotator "NA"]
[PlyCount "31"]
[EventDate "2019.05.18"]
[EventType "swiss"]
[EventCountry "MNE"]
[SourceTitle "playchess.com"]
[Source "ChessBase"]
[SourceQuality "1"]
[TimeControl "40/5400+30:1800+30"]

1. d4 {[%emt 0:00:00]} d5 {[%emt 0:06:34]} 2. c4 {[%emt 0:00:00]} c6 {[%emt 0:00:08]} 3. cxd5 {[%emt 0:00:35]} cxd5 4. Nc3 Nf6 {[%emt 0:00:50]} 5. Bg5 {[%emt 0:00:49]} e6 {[%emt 0:00:26]} 6. Nf3 {[%emt 0:00:34]} Nc6 {[%emt 0:00:26]} 7. e3 {[%emt 0:00:47]} a6 {[%emt 0:00:46]} 8. a3 {[%emt 0:01:50]} Be7 {[%emt 0:00:50]} 9. Bd3 {[%emt 0:01:00]} O-O {[%emt 0:00:30]} 10. Qc2 {[%emt 0:02:03]} h6 {[%emt 0:00:23]} 11. Bh4 {[%emt 0:00:17]} Bd7 {[%emt 0:00:39]} 12. O-O {[%emt 0:01:01]} Rc8 {[%emt 0:00:10]} 13. Rac1 {[%emt 0:01:54]} g5 {[%emt 0:07:08]} 14. Bg3 {[%emt 0:01:58]} Nh5 {[%emt 0:00:11]} 15. Be5 {[%emt 0:05:04]} g4 {[%emt 0:03:09]} 16. Bh7# 1-0

[Event "71st MNE-ch 2019"]
[Site "Podgorica"]
[Date "2019.05.26"]
[Round "9.15"]
[White "Petrovic, Slavko"]
[Black "Rakic, Tijana"]
[Result "1-0"]
[ECO "B01"]
[WhiteElo "1945"]
[BlackElo "1579"]
[Annotator "NA"]
[PlyCount "107"]
[EventDate "2019.05.18"]
[EventType "swiss"]
[EventCountry "MNE"]
[SourceTitle "playchess.com"]
[Source "ChessBase"]
[SourceQuality "1"]
[TimeControl "40/5400+30:1800+30"]

1. e4 {[%emt 0:00:00]} d5 {[%emt 0:00:28]} 2. exd5 {[%emt 0:02:24]} Qxd5 {[%emt 0:00:17]} 3. d4 {[%emt 0:00:34]} Nf6 {[%emt 0:00:06]} 4. Nf3 {[%emt 0:01:39]} Bg4 {[%emt 0:01:24]} 5. Be2 {[%emt 0:00:27]} Nc6 {[%emt 0:01:13]} 6. c4 {[%emt 0:01:06]} Qh5 {[%emt 0:02:17]} 7. Bf4 {[%emt 0:02:57]} O-O-O {[%emt 0:02:37]} 8. d5 {[%emt 0:02:21]} e5 {[%emt 0:02:18]} 9. Be3 {[%emt 0:03:04]} e4 {[%emt 0:15:40]} 10. Nd4 {[%emt 0:10:38]} Bxe2 {[%emt 0:01:17]} 11. Qxe2 {[%emt 0:03:51]} Qxe2+ {[%emt 0:00:44]} 12. Kxe2 {[%emt 0:00:34]} Ne5 {[%emt 0:00:55]} 13. b3 {[%emt 0:02:08]} Nfg4 {[%emt 0:03:29]} 14. h3 {[%emt 0:01:14]} Nxe3 {[%emt 0:00:37]} 15. fxe3 {[%emt 0:00:29]} g6 {[%emt 0:00:47]} 16. Nd2 {[%emt 0:01:45]} f5 {[%emt 0:01:02]} 17. a3 {[%emt 0:02:40]} c6 {[%emt 0:02:21]} 18. dxc6 {[%emt 0:05:25]} Nxc6 {[%emt 0:00:46]} 19. Ne6 {[%emt 0:04:42]} Rd3 {[%emt 0:00:34]} 20. Nf4 {[%emt 0:02:07]} Rd7 {[%emt 0:03:23]} 21. b4 {[%emt 0:00:52]} Bg7 {[%emt 0:00:28]} 22. Ra2 {[%emt 0:00:52]} Ne7 {[%emt 0:04:38]} 23. Rc1 {[%emt 0:00:54]} g5 {[%emt 0:02:44]} 24. Ne6 {[%emt 0:00:34]} Be5 {[%emt 0:00:30]} 25. g4 {[%emt 0:01:33]} Rd6 {[%emt 0:06:15]} 26. Nxg5 {[%emt 0:03:13]} Rf6 {[%emt 0:03:49]} 27. gxf5 {[%emt 0:05:03]} Nxf5 {[%emt 0:03:16]} 28. Ngxe4 {[%emt 0:02:30]} Rh6 {[%emt 0:01:10]} 29. Rf1 {[%emt 0:01:35]} Ng3+ {[%emt 0:02:42]} 30. Nxg3 {[%emt 0:00:28]} Bxg3 {[%emt 0:00:08]} 31. Rf3 {[%emt 0:03:12]} Rxh3 {[%emt 0:01:27]} 32. Nf1 {[%emt 0:00:18]} Rg8 {[%emt 0:00:19]} 33. Rd2 {[%emt 0:01:01]} h5 {[%emt 0:00:17]} 34. Rd3 {[%emt 0:06:56]} h4 {[%emt 0:00:30]} 35. e4 {[%emt 0:00:51]} Rg4 {[%emt 0:06:35]} 36. Rde3 {[%emt 0:01:08]} Kc7 {[%emt 0:01:48]} 37. Kd3 {[%emt 0:00:30]} Kd6 {[%emt 0:03:52]} 38. c5+ {[%emt 0:01:43]} Kc6 {[%emt 0:00:22]} 39. a4 {[%emt 0:00:34]} a6 {[%emt 0:00:19]} 40. Rf6+ {[%emt 0:00:00]} Kc7 {[%emt 0:00:00]} 41. b5 {[%emt 0:00:58]} axb5 {[%emt 0:00:37]} 42. axb5 {[%emt 0:00:10]} Rh1 {[%emt 0:00:10]} 43. Rf7+ {[%emt 0:00:48]} Kb8 {[%emt 0:00:56]} 44. Rff3 {[%emt 0:00:41]} Rg5 {[%emt 0:04:14]} 45. Kc4 {[%emt 0:01:04]} Be5 {[%emt 0:04:16]} 46. Rf8+ {[%emt 0:02:41]} Kc7 {[%emt 0:00:54]} 47. Ref3 {[%emt 0:00:18]} Rg7 {[%emt 0:02:21]} 48. Kd5 {[%emt 0:01:12]} Bg3 {[%emt 0:00:43]} 49. R3f7+ {[%emt 0:01:32]} Rxf7 {[%emt 0:00:27]} 50. Rxf7+ {[%emt 0:00:12]} Kb8 {[%emt 0:00:17]} 51. e5 {[%emt 0:00:32]} Bxe5 {[%emt 0:02:29]} 52. Kxe5 {[%emt 0:00:50]} h3 {[%emt 0:00:06]} 53. b6 {[%emt 0:00:40]} Rg1 {[%emt 0:00:10]} 54. Rf8# 1-0